Workbook

Sheet Лист1
A2: "СОГЛАСОВАНО" | C2: "УТВЕРЖДЕНО"
A3: _______________ | C3: _______________
A4: "____"___________2022г. | C4: "____"___________2022г.
B6: ООО "АБК - Пэймент"
B7: Примерное меню для пришкольных лагерей дневного пребывания
B8: для учащихся от 7 до 12 лет
B10: 1 день
B11: Наименование блюд | C11: Выход | D11: Белки | E11: Жиры | F11: Угл-ды | G11: Ккал
B12: Завтрак
A13: стр 186 табл. 9 /2012 Москва Дели Плюс | B13: Фрукты (бананы, яблоки, апельсины, мандарины) | C13: 100 | D13: 0.40 | E13: 0.40 | F13: 9.80 | G13: 47.00
A14: № 15/ СБ Москва Дели Плюс 2017 | B14: Сыр (порциями) | C14: 15 | D14: 3.95 | E14: 3.99 | G14: 51.50
A15: №173 /СБ Москва Дели Плюс 2017 | B15: Каша пшённая молочная с маслом сливочным | C15: 150/5 | D15: 8.57 | E15: 10.50 | F15: 29.20 | G15: 217.96
A16: № 378/ СБ Москва Дели Плюс 2017 | B16: Чай с молоком и сахаром | C16: 150/35/15 | D16: 1.55 | E16: 1.35 | F16: 15.90 | G16: 81.00
B17: Батончик злаковый | C17: 25 | D17: 1.60 | E17: 2.00 | F17: 16.50 | G17: 90.00
A18: стр 134 табл.6 /2012 Москва Дели Плюс | B18: Батон высший сорт | C18: 30 | D18: 2.25 | E18: 0.87 | F18: 15.42 | G18: 78.60
B19: Итого: | C19: 525 | D19: =SUM(D13:D18) -> 18.32 | E19: =SUM(E13:E18) -> 19.11 | F19: =SUM(F13:F18) -> 86.82 | G19: =SUM(G13:G18) -> 566.06
B21: Обед
A22: №71 /СБ Москва Дели Плюс 2017 | B22: Помидоры свежие порционно | C22: 60 | D22: 0.66 | E22: 0.12 | F22: 2.28 | G22: 13.20
A23: №88/СБ Москва Дели Плюс 2017, №105 /СБ Москва Дели Плюс 2017 | B23: Щи из свежей капусты с картофелем с мясными фрикадельками, со сметаной | C23: 200/11/10 | D23: 3.87 | E23: 6.75 | F23: 6.76 | G23: 109.56
A24: № 259 /СБ Москва Дели Плюс 2017 | B24: Жаркое по - домашнему из говядины (50/150) | C24: 200 | D24: 16.70 | E24: 21.02 | F24: 46.68 | G24: 427.50
A26: № 389 /СБ Москва Дели Плюс 2017 | B26: Нектар плодовый (разливной) | C26: 200 | D26: 1.00 | E26: 0.20 | F26: 20.20 | G26: 86.60
A27: стр 144 табл.6 /2012 Москва Дели Плюс | B27: Хлеб ржаной | C27: 40 | D27: 2.64 | E27: 0.48 | F27: 15.84 | G27: 79.20
A28: стр 134 табл.6 /2012 Москва Дели Плюс | B28: Хлеб пшеничный | C28: 40 | D28: 3.04 | E28: 0.32 | F28: 19.68 | G28: 94.00
B29: Итого: | C29: 761 | D29: =SUM(D22:D28) -> 27.91 | E29: =SUM(E22:E28) -> 28.89 | F29: 111.44 | G29: 810.06
B31: ВСЕГО: | C31: =C19+C29 -> 1286 | D31: =D19+D29 -> 46.23 | E31: =E19+E29 -> 48 | F31: =F19+F29 -> 198.26 | G31: =G19+G29 -> 1376.12
B34: 2 день
B35: Наименование блюд | C35: Выход | D35: Белки | E35: Жиры | F35: Угл-ды | G35: Ккал
B36: Завтрак
A37: № 14 /СБ Москва Дели Плюс 2017 | B37: Масло сливочное (порциями) | C37: 10 | D37: 0.08 | E37: 7.25 | F37: 0.13 | G37: 66.00
A38: №173 /СБ Москва Дели Плюс 2017 | B38: Каша геркулесовая молочная | C38: 200 | D38: 8.24 | E38: 4.87 | F38: 27.51 | G38: 197.47
A39: № 382 /СБ Москва Дели Плюс 2017 | B39: Какао с молоком | C39: 200 | D39: 4.08 | E39: 3.55 | F39: 17.58 | G39: 118.60
A40: стр 134 табл.6 /2012 Москва Дели Плюс | B40: Батон высший сорт | C40: 30 | D40: 2.25 | E40: 0.87 | F40: 15.42 | G40: 78.60
C41: 15 | D41: 0.00 | E41: 0.00 | F41: 11.20 | G41: 42.25
A42: №424/СБ Москва Дели Плюс 2017 | B42: Печенье | C42: 50 | D42: 3.68 | E42: 3.63 | F42: 15.76 | G42: 113.10
B43: Итого: | C43: 505 | D43: =SUM(D37:D42) -> 18.33 | E43: =SUM(E37:E42) -> 20.17 | F43: =SUM(F37:F42) -> 87.60 | G43: =SUM(G37:G42) -> 616.02
B45: Обед
A46: №20/СБ Москва Дели Плюс 2017 | B46: Огурцы свежие с маслом растительным | C46: 60/5 | D46: 0.45 | E46: 3.61 | F46: 1.41 | G46: 39.96
A47: 101/СБ Москва Дели Плюс 2017 | B47: Суп картофельный с крупой на курином бульоне из отварного мяса птицы | C47: 250 | D47: 1.97 | E47: 4.71 | F47: 12.11 | G47: 98.75
A49: ТТК №187 от 2018 | B49: Гуляш из отварных куриных грудок | C49: 50/50 | D49: 13.90 | E49: 16.50 | F49: 5.80 | G49: 197.80
A50: №202/СБ Москва Дели Плюс 2017 | B50: Макаронные изделия отварные | C50: 150 | D50: 5.67 | E50: 0.70 | F50: 31.90 | G50: 156.30
A51: ТТК | B51: Компот из замороженной смородины | C51: 200 | D51: 0.60 | E51: 0.20 | F51: 24.80 | G51: 116.00
A52: стр 144 табл.6 /2012 Москва Дели Плюс | B52: Хлеб ржаной | C52: 40 | D52: 2.64 | E52: 0.48 | F52: 15.84 | G52: 79.20
A53: стр 134 табл.6 /2012 Москва Дели Плюс | B53: Хлеб пшеничный | C53: 40 | D53: 3.04 | E53: 0.32 | F53: 19.68 | G53: 94.00
B54: Итого: | C54: 845 | D54: =SUM(D46:D53) -> 28.27 | E54: =SUM(E46:E53) -> 26.52 | F54: =SUM(F46:F53) -> 111.54 | G54: =SUM(G46:G53) -> 782.01
B56: ВСЕГО: | C56: =C43+C54 -> 1350 | D56: =D43+D54 -> 46.6 | E56: 46.69 | F56: 199.14 | G56: 1398.03
B59: 3 день
B60: Наименование блюд | C60: Выход | D60: Белки | E60: Жиры | F60: Угл-ды | G60: Ккал
B61: Завтрак
A62: № 15/ СБ Москва Дели Плюс 2017 | B62: Сыр (порциями) | C62: 15 | D62: 3.95 | E62: 3.99 | G62: 51.50
A63: №173 /СБ Москва Дели Плюс 2017 | B63: Каша пшеничная молочная с маслом сливочным | C63: 150/5 | D63: 6.46 | E63: 6.10 | F63: 38.21 | G63: 217.50
A64: №210 /СБ Москва Дели Плюс 2017 | B64: Омлет натуральный | C64: 100 | D64: 7.29 | E64: 9.55 | F64: 12.76 | G64: 206.66
A65: №376 /СБ Москва Дели Плюс 2017 | B65: Чай с сахаром | C65: 185/15 | D65: 0.07 | E65: 0.02 | F65: 15.00 | G65: 60.00
A66: стр 134 табл.6 /2012 Москва Дели Плюс | B66: Батон высший сорт | C66: 30 | D66: 2.25 | E66: 0.87 | F66: 15.42 | G66: 78.60
B67: Итого: | C67: 500 | D67: =SUM(D62:D66) -> 20.02 | E67: =SUM(E62:E66) -> 20.53 | F67: =SUM(F62:F66) -> 81.39 | G67: =SUM(G62:G66) -> 614.26
B69: Обед
A70: №73 /СБ Москва Дели Плюс 2016 | B70: Икра кабачковая | C70: 60 | D70: 1.37 | E70: 3.59 | F70: 7.27 | G70: 66.90
A71: №94 ,297/СБ Москва Дели Плюс 2017 | B71: Рассольник ленинградский с фрикадельками из птицы,со сметаной | C71: 200/11/10 | D71: 3.39 | E71: 9.05 | F71: 14.36 | G71: 124.90
A72: ТТК №227 (Акт от 15.04.2017) | B72: Филе минтая запеченное с сыром | C72: 80/10 | D72: 13.20 | E72: 6.44 | F72: 3.63 | G72: 156.33
A73: №312 /СБ Москва Дели Плюс 2017 | B73: Пюре картофельное | C73: 150 | D73: 3.06 | E73: 6.80 | F73: 20.44 | G73: 137.25
A74: №358,СБ 2017 Мосва | B74: Кисель | C74: 200 | D74: 0.57 | E74: 0.06 | F74: 30.20 | G74: 123.60
A76: стр 144 табл.6 /2012 Москва Дели Плюс | B76: Хлеб ржаной | C76: 40 | D76: 2.64 | E76: 0.48 | F76: 15.84 | G76: 79.20
A77: стр 134 табл.6 /2012 Москва Дели Плюс | B77: Хлеб пшеничный | C77: 40 | D77: 3.04 | E77: 0.32 | F77: 19.68 | G77: 94.00
B78: Итого: | C78: 801 | D78: =SUM(D70:D77) -> 27.27 | E78: =SUM(E70:E77) -> 26.74 | F78: 111.42 | G78: 782.18
B80: ВСЕГО: | C80: =C67+C78 -> 1301 | D80: =D67+D78 -> 47.28505556 | E80: 47.2735 | F80: 192.8125 | G80: 1396.44
B83: 4 день
B84: Наименование блюд | C84: Выход | D84: Белки | E84: Жиры | F84: Угл-ды | G84: Ккал
B85: Завтрак
A86: № 14 /СБ Москва Дели Плюс 2017 | B86: Масло сливочное (порциями) | C86: 10 | D86: 0.08 | E86: 7.25 | F86: 0.13 | G86: 66.00
A87: №175 / СБ Москва Дели Плюс 2017 | B87: Каша "Дружба" молочная с маслом сливочным | C87: 150/4 | D87: 4.53 | E87: 5.80 | F87: 25.06 | G87: 141.90
A88: №222 /СБ Москва Дели Плюс 2017 | B88: Пудинг из творога со сгущённым молоком | C88: 100/10 | D88: 10.17 | E88: 4.12 | F88: 29.38 | G88: 208.00
A89: №379 /СБ Москва Дели Плюс 2017 | B89: Кофейный напиток с молоком | C89: 200 | D89: 3.17 | E89: 2.67 | F89: 15.95 | G89: 100.60
A90: стр 134 табл.6 /2012 Москва Дели Плюс | B90: Батон высший сорт | C90: 30 | D90: 2.26 | E90: 0.88 | F90: 15.40 | G90: 78.60
B91: Итого: | C91: 504 | D91: =SUM(D86:D90) -> 20.21 | E91: =SUM(E86:E90) -> 20.72 | F91: =SUM(F86:F90) -> 85.92 | G91: =SUM(G86:G90) -> 595.10
B93: Обед
A94: №113 /СБ Москва Дели Плюс 2017 | B94: Суп - лапша домашняя на курином бульоне из отварного мяса птицы | C94: 250 | D94: 2.57 | E94: 5.54 | F94: 11.62 | G94: 115.75
A95: №292 /СБ Москва Дели Плюс 2017 | B95: Птица тушеная с овощами | C95: 50/50 | D95: 10.70 | E95: 10.06 | F95: 10.79 | G95: 183.95
A96: №171 /СБ Москва Дели Плюс 2017 | B96: Каша гречневая рассыпчатая с зеленым горошком к/с (доп.гарнир) | C96: 150/30 | D96: 8.20 | E96: 10.25 | F96: 40.45 | G96: 254.64
A97: № 389 /СБ Москва Дели Плюс 2017 | B97: Нектар плодовый (разливной) | C97: 200 | D97: 1.00 | E97: 0.20 | F97: 20.20 | G97: 86.60
A98: стр 144 табл.6 /2012 Москва Дели Плюс | B98: Хлеб ржаной | C98: 40 | D98: 2.64 | E98: 0.48 | F98: 15.84 | G98: 79.20
A99: стр 134 табл.6 /2012 Москва Дели Плюс | B99: Хлеб пшеничный | C99: 40 | D99: 3.04 | E99: 0.32 | F99: 19.68 | G99: 94.00
B100: Итого: | C100: 810 | D100: =SUM(D94:D99) -> 28.15 | E100: =SUM(E94:E99) -> 26.85 | F100: 118.58 | G100: 814.13
B102: ВСЕГО: | C102: =C91+C100 -> 1314 | D102: =D91+D100 -> 48.36 | E102: 47.5696997 | F102: 204.4999444 | G102: 1409.233259
B105: 5 день
B106: Наименование блюд | C106: Выход | D106: Белки | E106: Жиры | F106: Угл-ды | G106: Ккал
B107: Завтрак
A108: стр 186 табл. 9 /2012 Москва Дели Плюс | B108: Фрукты (бананы, яблоки, апельсины, мандарины) | C108: 100 | D108: 0.90 | E108: 0.20 | F108: 8.10 | G108: 43.00
A109: № 15/ СБ Москва Дели Плюс 2017 | B109: Сыр (порциями) | C109: 15 | D109: 3.95 | E109: 3.99 | G109: 51.50
A110: №182 / СБ Москва Дели Плюс 2016 | B110: Каша ячневая молочная с маслом сливочным | C110: 180/5 | D110: 3.94 | E110: 8.60 | F110: 27.23 | G110: 198.40
A111: № 378/ СБ Москва Дели Плюс 2017 | B111: Чай с молоком ,с сахаром | C111: 150/35/15 | D111: 1.55 | E111: 1.35 | F111: 15.90 | G111: 81.00
A112: стр 134 табл.6 /2012 Москва Дели Плюс | B112: Батон высший сорт | C112: 30 | D112: 2.25 | E112: 0.88 | F112: 15.40 | G112: 78.60
B113: Итого: | C113: 530 | D113: =SUM(D108:D112) -> 12.59 | E113: =SUM(E108:E112) -> 15.02 | F113: =SUM(F108:F112) -> 66.63 | G113: =SUM(G108:G112) -> 452.50
B115: Обед
A116: №52 /СБ Москва Дели Плюс 2017 | B116: Салат из отварной свеклы с маслом растительным | C116: 60/5 | D116: 0.85 | E116: 5.60 | F116: 4.96 | G116: 55.68
A117: №104 /СБ Москва Дели Плюс 2017, №105 /СБ Москва Дели Плюс 2017 | B117: Суп картофельный с мясными фрикадельками | C117: 200/11 | D117: 4.01 | E117: 9.50 | F117: 13.58 | G117: 112.20
A118: №234 /СБ Москва Дели Плюс 2017 | B118: Биточки рыбные из минтая | C118: 90 | D118: 10.98 | E118: 7.80 | F118: 11.52 | G118: 160.20
A119: №202/СБ Москва Дели Плюс 2017 | B119: Макаронные изделия отварные с маслом сливочным | C119: 150/3 | D119: 5.68 | E119: 2.88 | F119: 31.96 | G119: 176.10
A120: ТТК | B120: Компот из замороженных фруктов | C120: 200 | D120: 0.60 | E120: 0.20 | F120: 24.80 | G120: 116.00
A121: стр 144 табл.6 /2012 Москва Дели Плюс | B121: Хлеб ржаной | C121: 40 | D121: 2.64 | E121: 0.48 | F121: 15.84 | G121: 79.20
A122: стр 134 табл.6 /2012 Москва Дели Плюс | B122: Хлеб пшеничный | C122: 40 | D122: 3.04 | E122: 0.32 | F122: 19.68 | G122: 94.00
B123: Итого: | C123: 799 | D123: =SUM(D116:D122) -> 27.80 | E123: =SUM(E116:E122) -> 26.78 | F123: =SUM(F116:F122) -> 122.34 | G123: =SUM(G116:G122) -> 793.38
B125: ВСЕГО: | C125: =C113+C123 -> 1329 | D125: =D113+D123 -> 40.39011052 | E125: 41.8 | F125: 188.9657815 | G125: 1245.880214
B128: 6 день
B129: Наименование блюд | C129: Выход | D129: Белки | E129: Жиры | F129: Угл-ды | G129: Ккал
B130: Завтрак
A131: стр 186 табл. 9 /2012 Москва Дели Плюс | B131: Фрукты (бананы, яблоки, апельсины, мандарины) | C131: 100 | D131: 0.40 | E131: 0.40 | F131: 9.80 | G131: 47.00
A132: № 14 /СБ Москва Дели Плюс 2017 | B132: Масло сливочное (порциями) | C132: 10 | D132: 0.08 | E132: 7.25 | F132: 0.13 | G132: 66.00
A133: №401 /СБ Москва Дели Плюс 2017 | B133: Оладьи с повидлом | C133: 150/20 | D133: 11.95 | E133: 8.63 | F133: 43.45 | G133: 306.18
A134: № 382 /СБ Москва Дели Плюс 2017 | B134: Какао с молоком | C134: 200 | D134: 4.08 | E134: 3.54 | F134: 17.58 | G134: 118.60
A135: стр 134 табл.6 /2012 Москва Дели Плюс | B135: Батон высший сорт | C135: 30 | D135: 2.25 | E135: 0.87 | F135: 15.42 | G135: 78.60
B136: Итого: | C136: 510 | D136: =SUM(D131:D135) -> 18.76 | E136: =SUM(E131:E135) -> 20.69 | F136: =SUM(F131:F135) -> 86.38 | G136: =SUM(G131:G135) -> 616.38
B138: Обед
A139: №71 /СБ Москва Дели Плюс 2017 | B139: Помидоры свежие порционно | C139: 60 | D139: 0.66 | E139: 0.12 | F139: 2.28 | G139: 13.20
A140: №99 /СБ Москва Дели Плюс 2017 | B140: Суп из овощей на курином бульоне из отварного мяса птицы, со сметаной | C140: 200/10 | D140: 1.53 | E140: 5.49 | F140: 7.68 | G140: 98.50
A141: №321 Сб дошк 2016 | B141: Плов из отварных куриных грудок (50/150) | C141: 200 | D141: 19.80 | E141: 21.48 | F141: 43.45 | G141: 389.34
A142: №349 /СБ Москва Дели Плюс 2017 | B142: Компот из изюма | C142: 200 | D142: 0.55 | E142: 0.08 | F142: 25.77 | G142: 107.40
A143: стр 144 табл.6 /2012 Москва Дели Плюс | B143: Хлеб ржаной | C143: 40 | D143: 2.64 | E143: 0.48 | F143: 15.84 | G143: 79.20
A144: стр 134 табл.6 /2012 Москва Дели Плюс | B144: Хлеб пшеничный | C144: 40 | D144: 3.04 | E144: 0.32 | F144: 19.68 | G144: 94.00
B145: Итого: | C145: 750 | D145: =SUM(D139:D144) -> 28.22 | E145: =SUM(E139:E144) -> 27.97 | F145: 114.70 | G145: 781.64
B147: ВСЕГО: | C147: =C136+C145 -> 1260 | D147: =D136+D145 -> 46.98 | E147: =E136+E145 -> 48.66 | F147: 201.08 | G147: 1398.02
B150: 7 день
B151: Наименование блюд | C151: Выход | D151: Белки | E151: Жиры | F151: Угл-ды | G151: Ккал
B152: Завтрак
A153: № 15/ СБ Москва Дели Плюс 2017 | B153: Сыр (порциями) | C153: 15 | D153: 3.95 | E153: 3.99 | G153: 51.50
A154: №173 / СБ Москва Дели Плюс 2017 | B154: Каша полбяная молочная с маслом сливочным | C154: 150/4 | D154: 6.14 | E154: 5.76 | F154: 36.20 | G154: 200.90
A155: №210 /СБ Москва Дели Плюс 2017 | B155: Омлет натуральный | C155: 100 | D155: 7.29 | E155: 9.55 | F155: 12.76 | G155: 206.66
A156: №376 /СБ Москва Дели Плюс 2017 | B156: Чай с сахаром | C156: 185/15 | D156: 0.07 | E156: 0.02 | F156: 15.00 | G156: 60.00
A157: стр 134 табл.6 /2012 Москва Дели Плюс | B157: Батон высший сорт | C157: 35 | D157: 2.63 | E157: 1.02 | F157: 17.99 | G157: 91.70
B158: Итого: | C158: 500 | D158: =SUM(D153:D157) -> 20.08 | E158: =SUM(E153:E157) -> 20.34 | F158: =SUM(F153:F157) -> 81.95 | G158: =SUM(G153:G157) -> 610.76
B160: Обед
A161: №20/СБ Москва Дели Плюс 2017 | B161: Огурцы свежие с маслом растительным | C161: 60/5 | D161: 0.45 | E161: 3.61 | F161: 1.41 | G161: 39.96
A162: №119 /СБ Москва Дели Плюс 2017, №297 /СБ Москва Дели Плюс 2017 | B162: Суп гороховый с фрикадельками из птицы и гренками | C162: 200/11/10 | D162: 6.08 | E162: 14.50 | F162: 11.26 | G162: 137.42
A163: ТТК 65Д | B163: Котлеты "Аппетитные" | C163: 90 | D163: 10.64 | E163: 3.94 | F163: 14.75 | G163: 166.88
A164: №180/СБ Москва Дели Плюс 2016 | B164: Перловая каша рассыпчатая с овощами с маслом сливочным | C164: 150/5 | D164: 4.41 | E164: 3.86 | F164: 12.36 | G164: 144.53
A165: ТТК | B165: Компот из замороженной смородины | C165: 200 | D165: 0.60 | E165: 0.20 | F165: 24.80 | G165: 116.00
B166: Батончик злаковый | C166: 25 | D166: 1.60 | E166: 2.00 | F166: 16.50 | G166: 90.00
A167: стр 144 табл.6 /2012 Москва Дели Плюс | B167: Хлеб ржаной | C167: 30 | D167: 1.98 | E167: 0.36 | F167: 11.88 | G167: 59.40
A168: стр 134 табл.6 /2012 Москва Дели Плюс | B168: Хлеб пшеничный | C168: 30 | D168: 2.28 | E168: 0.24 | F168: 14.76 | G168: 70.50
B169: Итого: | C169: 816 | D169: =SUM(D161:D168) -> 28.04 | E169: =SUM(E161:E168) -> 28.71 | F169: =SUM(F161:F168) -> 107.72 | G169: =SUM(G161:G168) -> 824.69
B171: ВСЕГО: | C171: =C158+C169 -> 1316 | D171: =D158+D169 -> 48.12 | E171: 49.05 | F171: 189.67 | G171: 1435.45
B174: 8 день
B175: Наименование блюд | C175: Выход | D175: Белки | E175: Жиры | F175: Угл-ды | G175: Ккал
B176: Завтрак
A177: стр 186 табл. 9 /2012 Москва Дели Плюс | B177: Фрукты (бананы, яблоки, апельсины, мандарины) | C177: 120 | D177: 1.08 | E177: 0.24 | F177: 9.72 | G177: 51.60
A178: № 14 /СБ Москва Дели Плюс 2017 | B178: Масло сливочное (порциями) | C178: 10 | D178: 0.08 | E178: 7.25 | F178: 0.13 | G178: 66.00
A179: №223 /СБ Москва Дели Плюс 2017 | B179: Запеканка из творога со сгущённым молоком | C179: 130/20 | D179: 13.60 | E179: 9.14 | F179: 38.48 | G179: 313.00
A180: №379 /СБ Москва Дели Плюс 2017 | B180: Кофейный напиток с молоком | C180: 200 | D180: 3.17 | E180: 2.68 | F180: 15.95 | G180: 100.60
A181: стр 134 табл.6 /2012 Москва Дели Плюс | B181: Батон высший сорт | C181: 30 | D181: 2.25 | E181: 0.87 | F181: 15.42 | G181: 78.60
B182: Итого: | C182: 510 | D182: =SUM(D177:D181) -> 20.18 | E182: =SUM(E177:E181) -> 20.18 | F182: 79.70 | G182: 609.80
B185: Обед
A186: №12 /СБ Москва Дели Плюс 2016 | B186: Салат из кукурузы к/с | C186: 60 | D186: 1.73 | E186: 3.70 | F186: 4.81 | G186: 59.46
A187: №98 /СБ Москва Дели Плюс 2017 | B187: Суп крестьянский с пшенной крупой на мясном бульоне из отварного мяса говядины | C187: 250 | D187: 2.18 | E187: 2.84 | F187: 14.29 | G187: 91.50
A188: №143 /СБ Москва Дели Плюс 2017, №241 /СБ Москва Дели Плюс 2017 | B188: Рагу овощное с отварным мясом (50/150) | C188: 200 | D188: 14.47 | E188: 16.60 | F188: 17.31 | G188: 292.17
A189: №342/СБ Москва Дели Плюс 2017 | B189: Компот из яблок | C189: 200 | D189: 0.16 | E189: 0.16 | F189: 27.88 | G189: 114.60
A190: стр 144 табл.6 /2012 Москва Дели Плюс | B190: Хлеб ржаной | C190: 40 | D190: 2.64 | E190: 0.48 | F190: 15.84 | G190: 79.20
A191: стр 134 табл.6 /2012 Москва Дели Плюс | B191: Хлеб пшеничный | C191: 40 | D191: 3.04 | E191: 0.32 | F191: 19.68 | G191: 94.00
B192: Итого: | C192: 790 | D192: =SUM(D186:D191) -> 24.22 | E192: =SUM(E186:E191) -> 24.10 | F192: =SUM(F186:F191) -> 99.81 | G192: =SUM(G186:G191) -> 730.93
B194: ВСЕГО: | C194: =C182+C192 -> 1300 | D194: =D182+D192 -> 44.39833333 | E194: =E182+E192 -> 44.28333333 | F194: =F182+F192 -> 179.51 | G194: =G182+G192 -> 1340.726667
B197: 9 день
B198: Наименование блюд | C198: Выход | D198: Белки | E198: Жиры | F198: Угл-ды | G198: Ккал
B199: Завтрак
A200: № 15/ СБ Москва Дели Плюс 2017 | B200: Сыр (порциями) | C200: 15 | D200: 3.95 | E200: 3.99 | G200: 51.50
A201: №174 / СБ Москва Дели Плюс 2017 | B201: Каша рисовая молочная с маслом сливочным | C201: 150/3 | D201: 6.62 | E201: 7.08 | F201: 12.15 | G201: 143.80
A202: стр 186 табл. 9 /2012 Москва Дели Плюс | B202: Фрукты (бананы, яблоки, апельсины, мандарины) | C202: 100 | D202: 0.40 | E202: 0.40 | F202: 9.80 | G202: 47.00
A203: № 378/ СБ Москва Дели Плюс 2017 | B203: Чай с молоком и сахаром | C203: 150/35/15 | D203: 1.55 | E203: 1.35 | F203: 15.90 | G203: 81.00
A204: стр 134 табл.6 /2012 Москва Дели Плюс | B204: Батон высший сорт | C204: 30 | D204: 2.25 | E204: 0.87 | F204: 15.42 | G204: 78.60
B205: Итого: | C205: 523 | D205: =SUM(D200:D204) -> 14.77 | E205: =SUM(E200:E204) -> 13.69 | F205: =SUM(F200:F204) -> 53.27 | G205: =SUM(G200:G204) -> 401.90
B207: Обед
A208: №71 /СБ Москва Дели Плюс 2017 | B208: Помидоры свежие порционно | C208: 60 | D208: 0.66 | E208: 0.12 | F208: 2.28 | G208: 13.20
A209: №84 /СБ Москва Дели Плюс 2017, №297 /СБ Москва Дели Плюс 2017 | B209: Борщ сибирский с фрикадельками из птицы,со сметаной | C209: 200/11/10 | D209: 4.63 | E209: 9.87 | F209: 12.59 | G209: 148.62
A210: №328 /СБ Москва Дели Плюс 2017 | B210: Фрикадельки рыбные в соусе молочном | C210: 55/50 | D210: 7.53 | E210: 11.14 | F210: 9.47 | G210: 150.60
A211: №202/СБ Москва Дели Плюс 2017 | B211: Макаронные изделия отварные | C211: 150 | D211: 5.66 | E211: 0.70 | F211: 31.90 | G211: 156.30
A212: № 389 /СБ Москва Дели Плюс 2017 | B212: Нектар плодовый (разливной) | C212: 200 | D212: 1.00 | E212: 0.20 | F212: 20.20 | G212: 86.60
A213: стр 144 табл.6 /2012 Москва Дели Плюс | B213: Хлеб ржаной | C213: 30 | D213: 1.98 | E213: 0.36 | F213: 11.88 | G213: 59.40
A214: стр 134 табл.6 /2012 Москва Дели Плюс | B214: Хлеб пшеничный | C214: 30 | D214: 2.28 | E214: 0.24 | F214: 14.76 | G214: 70.50
B215: Итого: | C215: 816 | D215: =SUM(D208:D214) -> 23.74 | E215: =SUM(E208:E214) -> 22.63 | F215: 103.08 | G215: 685.22
B217: ВСЕГО: | C217: =C205+C215 -> 1339 | D217: =D205+D215 -> 38.51 | E217: =E205+E215 -> 36.32 | F217: 156.35 | G217: 1087.122222
B220: 10 день
B221: Наименование блюд | C221: Выход | D221: Белки | E221: Жиры | F221: Угл-ды | G221: Ккал
B222: Завтрак
A223: №71/СБ Москва Дели Плюс 2016 | B223: Огурцы свежие порционно | C223: 70 | D223: 0.49 | E223: 0.07 | F223: 1.33 | G223: 8.40
A224: №173 /СБ Москва Дели Плюс 2017 | B224: Каша пшеничная молочная с маслом сливочным | C224: 180/5 | D224: 7.74 | E224: 10.21 | F224: 27.90 | G224: 247.40
A225: № 382 /СБ Москва Дели Плюс 2017 | B225: Какао с молоком | C225: 200 | D225: 4.08 | E225: 3.54 | F225: 17.58 | G225: 118.60
A226: стр 134 табл.6 /2012 Москва Дели Плюс | B226: Батон высший сорт | C226: 45 | D226: 3.38 | E226: 1.31 | F226: 23.13 | G226: 117.90
B227: Итого: | C227: 500 | D227: =SUM(D223:D226) -> 15.69 | E227: =SUM(E223:E226) -> 15.13 | F227: =SUM(F223:F226) -> 69.94 | G227: =SUM(G223:G226) -> 492.30
B229: Обед
A230: №96 /СБ Москва Дели Плюс 2017 | B230: Рассольник ленинградский со сметаной | C230: 200/10 | D230: 1.87 | E230: 5.57 | F230: 9.94 | G230: 102.00
A231: №284/СБ Москва Дели Плюс 2017 | B231: Запеканка картофельная с мясом (50/150) | C231: 200 | D231: 18.30 | E231: 19.12 | F231: 43.50 | G231: 427.76
A232: №10, СБ 2016 | B232: Зеленый горошек к/с (доп.гарнир) | C232: 60 | D232: 1.86 | E232: 3.20 | F232: 3.90 | G232: 24.00
A233: №358,СБ 2017 Мосва | B233: Кисель | C233: 200 | D233: 0.57 | E233: 0.06 | F233: 30.20 | G233: 123.60
A234: стр 144 табл.6 /2012 Москва Дели Плюс | B234: Хлеб ржаной | C234: 40 | D234: 2.64 | E234: 0.48 | F234: 15.84 | G234: 79.20
A235: стр 134 табл.6 /2012 Москва Дели Плюс | B235: Хлеб пшеничный | C235: 40 | D235: 3.04 | E235: 0.32 | F235: 19.68 | G235: 94.00
B236: Итого: | C236: 750 | D236: =SUM(D230:D235) -> 28.28 | E236: =SUM(E230:E235) -> 28.75 | F236: 123.06 | G236: 850.56
B238: ВСЕГО: | C238: =C227+C236 -> 1250 | D238: =D227+D236 -> 43.974 | E238: 43.882 | F238: 192.9996 | G238: 1342.86
B241: 11 день
B242: Наименование блюд | C242: Выход | D242: Белки | E242: Жиры | F242: Угл-ды | G242: Ккал
B243: Завтрак
A245: № 14 /СБ Москва Дели Плюс 2017 | B245: Масло сливочное (порциями) | C245: 10 | D245: 0.08 | E245: 7.25 | F245: 0.13 | G245: 66.00
A246: №182 / СБ Москва Дели Плюс 2016 | B246: Каша ячневая молочная с маслом сливочным | C246: 150/4 | D246: 3.29 | E246: 3.34 | F246: 21.23 | G246: 128.40
A247: №212 /СБ Москва Дели Плюс 2017 | B247: Омлет натуральный с сосисками | C247: 100 | D247: 12.66 | E247: 8.92 | F247: 24.87 | G247: 210.12
A248: №376 /СБ Москва Дели Плюс 2017 | B248: Чай с сахаром | C248: 185/15 | D248: 0.07 | E248: 0.02 | F248: 15.00 | G248: 60.00
... 209 more rows
